[Event "Turkish-ch Youth U16 2024"]
[Site "Belek Antalya"]
[Date "2024.01.27"]
[Round "9"]
[White "Ulus, Ekin"]
[Black "Yildiz, Elif Zeren"]
[Result "1-0"]
[ECO "B86"]
[WhiteElo "1452"]
[BlackElo "1767"]
[Annotator "NA RC COMBH"]
[PlyCount "62"]
[EventDate "2024.01.21"]
[EventType "swiss"]
[EventCountry "TUR"]
[SourceTitle "playchess.com"]
[Source "ChessBase"]
[SourceQuality "1"]
[TimeControl "5400+30"]

1. e4 {[%emt 0:01:00]} c5 {[%emt 0:01:00]} 2. Nf3 {[%emt 0:00:30]} d6 {[%emt 0:00:30]} 3. d4 {[%emt 0:00:30]} cxd4 {[%emt 0:00:30]} 4. Nxd4 {[%emt 0:00:30]} Nf6 {[%emt 0:00:30]} 5. Nc3 {[%emt 0:00:30]} a6 {[%emt 0:00:30]} 6. Bc4 {[%emt 0:00:00]} e6 {[%emt 0:00:00]} 7. Bb3 {[%emt 0:00:00]} Be7 {[%emt 0:00:00]} 8. g4 {[%emt 0:00:00]} Nc6 {[%emt 0:04:30]} 9. g5 {[%emt 0:02:00]} Nxd4 {[%emt 0:02:30]} 10. Qxd4 {[%emt 0:00:30]} Nh5 {[%emt 0:01:30]} 11. h4 {[%emt 0:05:30]} Qa5 {[%emt 0:06:30]} 12. Be3 {[%emt 0:05:30]} Bd7 {[%emt 0:04:30]} 13. O-O-O {[%emt 0:03:30]} Bc6 {[%emt 0:06:30]} 14. Rhg1 {[%emt 0:09:30]} Rg8 {[%emt 0:11:30]} 15. f4 {[%emt 0:06:30]} g6 {[%emt 0:00:30]} 16. Rdf1 {[%emt 0:20:30]} Ng7 {[%emt 0:01:30]} 17. h5 {[%emt 0:01:30]} Nxh5 {[%emt 0:00:30]} 18. f5 {[%emt 0:00:00]} Bd7 {[%emt 0:06:30]} 19. f6 {[%emt 0:07:00]} Bf8 {[%emt 0:01:30]} 20. Qd2 {[%emt 0:15:30]} Rh8 {[%emt 0:05:30]} 21. Qf2 {[%emt 0:01:27]} Rc8 {[%emt 0:08:30]} 22. Bb6 {[%emt 0:02:17]} Qe5 {[%emt 0:00:30]} 23. Nd5 {[%emt 0:01:40]} Qxe4 {[%emt 0:05:30]} 24. Nc7+ {[%emt 0:00:30]} Rxc7 {[%emt 0:00:30]} 25. Bxc7 {[%emt 0:00:30]} Qc6 {[%emt 0:00:30]} 26. Ba5 {[%emt 0:00:30]} h6 {[%emt 0:00:30]} 27. Qa7 {[%emt 0:03:46]} hxg5 {[%emt 0:03:30]} 28. Ba4 {[%emt 0:05:10]} b5 {[%emt 0:01:30]} 29. Rf3 {[%emt 0:00:29]} Qc5 {[%emt 0:00:30]} 30. Bb6 {[%emt 0:00:17]} Qc8 {[%emt 0:00:30]} 31. Rc3 {[%emt 0:00:23]} Bc6 {[%emt 0:01:30]} 1-0

[Event "Turkish-ch Youth U16 2024"]
[Site "Belek Antalya"]
[Date "2024.01.27"]
[Round "9"]
[White "Karatiken, Beray"]
[Black "Tirpan, Ceren"]
[Result "0-1"]
[ECO "D02"]
[WhiteElo "1391"]
[BlackElo "2025"]
[Annotator "NA RC"]
[PlyCount "69"]
[EventDate "2024.01.21"]
[EventType "swiss"]
[EventCountry "TUR"]
[SourceTitle "playchess.com"]
[Source "ChessBase"]
[SourceQuality "1"]
[TimeControl "5400+30"]

1. d4 {[%emt 0:01:00]} Nf6 {[%emt 0:02:00]} 2. Bf4 {[%emt 0:00:30]} e6 {[%emt 0:00:00]} 3. e3 {[%emt 0:00:00]} c5 {[%emt 0:00:00]} 4. c3 {[%emt 0:00:00]} d5 {[%emt 0:02:30]} 5. Nf3 {[%emt 0:02:30]} Nc6 {[%emt 0:00:00]} 6. Nbd2 {[%emt 0:00:30]} Qb6 {[%emt 0:02:00]} 7. Qb3 {[%emt 0:00:30]} c4 {[%emt 0:04:30]} 8. Qc2 {[%emt 0:00:30]} Qa5 {[%emt 0:01:30]} 9. Be2 {[%emt 0:05:30]} Be7 {[%emt 0:00:30]} 10. Ne5 {[%emt 0:01:30]} Nxe5 {[%emt 0:03:30]} 11. Bxe5 {[%emt 0:00:30]} O-O {[%emt 0:06:30]} 12. Bxf6 {[%emt 0:03:30]} Bxf6 {[%emt 0:00:30]} 13. O-O {[%emt 0:04:30]} b5 {[%emt 0:06:30]} 14. b4 {[%emt 0:02:30]} Qc7 {[%emt 0:10:30]} 15. a4 {[%emt 0:04:30]} a5 {[%emt 0:00:30]} 16. axb5 {[%emt 0:04:30]} Bd7 {[%emt 0:00:30]} 17. bxa5 {[%emt 0:07:30]} Rxa5 {[%emt 0:00:00]} 18. Rxa5 {[%emt 0:01:30]} Qxa5 {[%emt 0:00:00]} 19. e4 {[%emt 0:02:30]} Bxb5 {[%emt 0:02:30]} 20. exd5 {[%emt 0:01:30]} exd5 {[%emt 0:00:00]} 21. Bf3 {[%emt 0:04:30]} Bd7 {[%emt 0:00:00]} 22. Rb1 {[%emt 0:02:30]} Be6 {[%emt 0:02:30]} 23. Nf1 {[%emt 0:01:30]} Bg5 {[%emt 0:10:30]} 24. Ne3 {[%emt 0:10:30]} Rd8 {[%emt 0:00:30]} 25. Qb2 {[%emt 0:01:30]} Bf4 {[%emt 0:08:30]} 26. g3 {[%emt 0:03:30]} Bxe3 {[%emt 0:03:30]} 27. fxe3 {[%emt 0:00:30]} Bf5 {[%emt 0:00:30]} 28. Ra1 {[%emt 0:00:30]} Qc7 {[%emt 0:00:30]} 29. Qb5 {[%emt 0:00:30]} Qe7 {[%emt 0:00:30]} 30. Kf2 {[%emt 0:03:30]} Re8 {[%emt 0:18:01]} 31. Re1 {[%emt 0:02:30]} Be4 {[%emt 0:00:35]} 32. Bxe4 {[%emt 0:07:30]} Qxe4 {[%emt 0:00:08]} 33. Qb1 {[%emt 0:01:30]} Qg4 {[%emt 0:00:54]} 34. Kg2 {[%emt 0:01:30]} h5 {[%emt 0:00:38]} 35. Qd1 {[%emt 0:04:43]} 0-1

[Event "Turkish-ch Youth U16 2024"]
[Site "Belek Antalya"]
[Date "2024.01.27"]
[Round "9"]
[White "Dalkilinc, Gul"]
[Black "Inci, Busra Nur"]
[Result "0-1"]
[ECO "E70"]
[WhiteElo "1254"]
[BlackElo "1346"]
[Annotator "NA RC COMBH"]
[PlyCount "62"]
[EventDate "2024.01.21"]
[EventType "swiss"]
[EventCountry "TUR"]
[SourceTitle "playchess.com"]
[Source "ChessBase"]
[SourceQuality "1"]
[TimeControl "5400+30"]

1. d4 {[%emt 0:01:00]} c5 {[%emt 0:01:00]} 2. d5 {[%emt 0:04:30]} d6 {[%emt 0:03:30]} 3. c4 {[%emt 0:00:30]} g6 {[%emt 0:03:30]} 4. Nc3 {[%emt 0:00:30]} Bg7 {[%emt 0:00:30]} 5. e4 {[%emt 0:01:30]} Nf6 {[%emt 0:00:30]} 6. Nge2 {[%emt 0:02:30]} Bd7 {[%emt 0:02:30]} 7. Ng3 {[%emt 0:00:30]} Na6 {[%emt 0:05:30]} 8. Be2 {[%emt 0:01:30]} Nc7 {[%emt 0:02:30]} 9. O-O {[%emt 0:00:30]} O-O {[%emt 0:06:30]} 10. f4 {[%emt 0:03:30]} Bc8 {[%emt 0:16:30]} 11. Qd3 {[%emt 0:08:30]} Nd7 {[%emt 0:07:30]} 12. Be3 {[%emt 0:01:30]} a6 {[%emt 0:01:30]} 13. Rab1 {[%emt 0:05:30]} Rb8 {[%emt 0:00:30]} 14. b4 {[%emt 0:06:30]} cxb4 {[%emt 0:02:30]} 15. Rxb4 {[%emt 0:00:30]} Nc5 {[%emt 0:00:30]} 16. Bxc5 {[%emt 0:00:30]} dxc5 {[%emt 0:00:30]} 17. Rb3 {[%emt 0:01:30]} Bd4+ {[%emt 0:01:30]} 18. Kh1 {[%emt 0:01:30]} Bd7 {[%emt 0:04:30]} 19. Rfb1 {[%emt 0:04:30]} b5 {[%emt 0:05:30]} 20. cxb5 {[%emt 0:04:30]} axb5 {[%emt 0:03:30]} 21. Qd2 {[%emt 0:13:30]} b4 {[%emt 0:02:30]} 22. Nd1 {[%emt 0:00:30]} Ba4 {[%emt 0:00:30]} 23. Rf3 {[%emt 0:00:30]} Nb5 {[%emt 0:00:30]} 24. Bxb5 {[%emt 0:03:30]} Bxd1 {[%emt 0:07:30]} 25. Rxd1 {[%emt 0:00:30]} Rxb5 {[%emt 0:00:30]} 26. Ne2 {[%emt 0:02:30]} Bg7 {[%emt 0:01:30]} 27. Rc1 {[%emt 0:01:30]} Qa5 {[%emt 0:00:30]} 28. Rh3 {[%emt 0:00:30]} Ra8 {[%emt 0:00:30]} 29. Qd3 {[%emt 0:02:30]} Rb7 {[%emt 0:03:10]} 30. Rc2 {[%emt 0:01:30]} b3 {[%emt 0:02:02]} 31. Rc1 {[%emt 0:02:30]} bxa2 {[%emt 0:01:18]} 0-1